[Event "AUT-ch U16 Boys 2022"]
[Site "Sankt Veit an der Glan"]
[Date "2022.04.11"]
[Round "3"]
[White "Elsaesser, Daniel"]
[Black "Leitner, Thomas"]
[Result "0-1"]
[ECO "B45"]
[WhiteElo "1571"]
[BlackElo "1734"]
[Annotator "NA RC"]
[PlyCount "128"]
[EventDate "2022.04.11"]
[EventType "swiss"]
[EventCountry "AUT"]
[SourceTitle "playchess.com"]
[Source "ChessBase"]
[SourceQuality "1"]
[TimeControl "5400+30"]

1. e4 {[%emt 0:00:02]} c5 {[%emt 0:00:10]} 2. Nf3 {[%emt 0:00:07]} e6 {[%emt 0:00:07]} 3. d4 {[%emt 0:00:04]} cxd4 {[%emt 0:00:07]} 4. Nxd4 {[%emt 0:00:06]} Nf6 {[%emt 0:00:09]} 5. Nc3 {[%emt 0:00:07]} Nc6 {[%emt 0:00:07]} 6. Ndb5 {[%emt 0:00:49]} Bc5 {[%emt 0:00:21]} 7. Bf4 {[%emt 0:00:24]} O-O {[%emt 0:00:12]} 8. Bc7 {[%emt 0:00:23]} Qe7 {[%emt 0:00:09]} 9. Bd6 {[%emt 0:00:18]} Bxd6 {[%emt 0:00:21]} 10. Qxd6 {[%emt 0:00:14]} Qd8 {[%emt 0:04:25]} 11. O-O-O {[%emt 0:04:52]} a6 {[%emt 0:00:26]} 12. Nd4 {[%emt 0:00:31]} Ne7 {[%emt 0:00:19]} 13. f3 {[%emt 0:11:08]} Ne8 {[%emt 0:00:59]} 14. Qg3 {[%emt 0:01:08]} b5 {[%emt 0:03:07]} 15. e5 {[%emt 0:06:30]} Bb7 {[%emt 0:02:18]} 16. Bd3 {[%emt 0:00:41]} f5 {[%emt 0:03:16]} 17. Rhe1 {[%emt 0:08:26]} Nd5 {[%emt 0:04:59]} 18. Nce2 {[%emt 0:05:51]} Rc8 {[%emt 0:05:29]} 19. Nf4 {[%emt 0:01:22]} Nxf4 {[%emt 0:08:01]} 20. Qxf4 {[%emt 0:01:03]} Nc7 {[%emt 0:00:53]} 21. g4 {[%emt 0:04:00]} Nd5 {[%emt 0:02:31]} 22. Qd2 {[%emt 0:00:38]} f4 {[%emt 0:02:10]} 23. Be4 {[%emt 0:02:50]} Rc7 {[%emt 0:10:33]} 24. Qd3 {[%emt 0:03:33]} Qh4 {[%emt 0:00:58]} 25. Nf5 {[%emt 0:05:34]} Qd8 {[%emt 0:14:25]} 26. Nd6 {[%emt 0:04:03]} Nb4 {[%emt 0:02:37]} 27. Bxh7+ {[%emt 0:08:01]} Kh8 {[%emt 0:01:34]} 28. Qb3 {[%emt 0:00:18]} Bd5 {[%emt 0:04:10]} 29. Rxd5 {[%emt 0:04:00]} Nxd5 {[%emt 0:00:29]} 30. Bg6 {[%emt 0:01:05]} Qh4 {[%emt 0:01:21]} 31. Re2 {[%emt 0:01:09]} Ne3 {[%emt 0:05:29]} 32. Qa3 {[%emt 0:04:53]} Qh3 {[%emt 0:05:45]} 33. Rf2 {[%emt 0:00:41]} Qh4 {[%emt 0:02:30]} 34. Re2 {[%emt 0:04:31]} Qd8 {[%emt 0:03:38]} 35. Nf7+ {[%emt 0:01:17]} Rxf7 {[%emt 0:00:10]} 36. Bxf7 {[%emt 0:00:08]} Qc8 {[%emt 0:00:37]} 37. Qd3 {[%emt 0:02:30]} Qd8 {[%emt 0:01:12]} 38. Qe4 {[%emt 0:03:45]} Rc4 {[%emt 0:01:03]} 39. Qg6 {[%emt 0:03:41]} Qh4 {[%emt 0:00:24]} 40. Qh5+ {[%emt 0:01:32]} Qxh5 {[%emt 0:00:11]} 41. Bxh5 {[%emt 0:00:10]} Rd4 {[%emt 0:01:49]} 42. b3 {[%emt 0:01:42]} Rd1+ {[%emt 0:00:26]} 43. Kb2 {[%emt 0:00:08]} Rd5 {[%emt 0:00:55]} 44. Bg6 {[%emt 0:00:18]} Rxe5 {[%emt 0:00:47]} 45. Rd2 {[%emt 0:01:31]} Rd5 {[%emt 0:01:37]} 46. Rxd5 {[%emt 0:00:14]} Nxd5 {[%emt 0:00:08]} 47. Be4 {[%emt 0:00:09]} Nc7 {[%emt 0:00:12]} 48. c4 {[%emt 0:00:57]} b4 {[%emt 0:00:34]} 49. c5 {[%emt 0:00:46]} g5 {[%emt 0:01:37]} 50. a3 {[%emt 0:00:15]} a5 {[%emt 0:00:28]} 51. axb4 {[%emt 0:00:08]} axb4 {[%emt 0:00:04]} 52. Kc2 {[%emt 0:00:14]} Na6 {[%emt 0:00:16]} 53. c6 {[%emt 0:00:16]} dxc6 {[%emt 0:00:08]} 54. Bxc6 {[%emt 0:00:23]} Nc5 {[%emt 0:00:05]} 55. Bb5 {[%emt 0:00:52]} Kg7 {[%emt 0:00:11]} 56. Bd3 {[%emt 0:00:37]} Kf6 {[%emt 0:00:23]} 57. Kd2 {[%emt 0:00:50]} Nxb3+ {[%emt 0:00:37]} 58. Kd1 {[%emt 0:00:20]} Nd4 {[%emt 0:00:34]} 59. Be4 {[%emt 0:00:10]} Nb3 {[%emt 0:00:40]} 60. Kc2 {[%emt 0:00:15]} Nc5 {[%emt 0:00:11]} 61. Bc6 {[%emt 0:00:14]} Ke5 {[%emt 0:03:37]} 62. Kd2 {[%emt 0:00:39]} Kd4 {[%emt 0:00:22]} 63. Kc2 {[%emt 0:00:21]} e5 {[%emt 0:03:46]} 64. Kd2 {[%emt 0:00:28]} e4 {[%emt 0:01:12]} 0-1

[Event "AUT-ch U16 Boys 2022"]
[Site "Sankt Veit an der Glan"]
[Date "2022.04.12"]
[Round "4.1"]
[White "Marakovits, Nico"]
[Black "Lerch, Johannes"]
[Result "1/2-1/2"]
[ECO "E10"]
[WhiteElo "2249"]
[BlackElo "2229"]
[Annotator "RC"]
[PlyCount "92"]
[EventDate "2022.04.11"]
[EventType "swiss"]
[EventCountry "AUT"]
[SourceTitle "playchess.com"]
[Source "ChessBase"]
[SourceQuality "1"]
[TimeControl "5400+30"]

1. d4 {[%emt 0:00:03]} Nf6 {[%emt 0:00:05]} 2. c4 {[%emt 0:00:05]} e6 {[%emt 0:00:06]} 3. Nf3 {[%emt 0:00:11]} a6 {[%emt 0:00:05]} 4. Nc3 {[%emt 0:05:03]} d5 {[%emt 0:00:09]} 5. cxd5 {[%emt 0:07:12]} exd5 {[%emt 0:00:06]} 6. Bg5 {[%emt 0:00:09]} Be6 {[%emt 0:00:05]} 7. e3 {[%emt 0:01:49]} Nbd7 {[%emt 0:01:12]} 8. Be2 {[%emt 0:03:31]} Bd6 {[%emt 0:03:04]} 9. Qc2 {[%emt 0:03:05]} c6 {[%emt 0:01:28]} 10. O-O {[%emt 0:05:20]} Qc7 {[%emt 0:01:59]} 11. Bh4 {[%emt 0:12:31]} O-O {[%emt 0:04:53]} 12. Bg3 {[%emt 0:04:05]} Bxg3 {[%emt 0:04:43]} 13. hxg3 {[%emt 0:00:14]} g6 {[%emt 0:01:56]} 14. Bd3 {[%emt 0:01:39]} Qd6 {[%emt 0:06:45]} 15. Rab1 {[%emt 0:02:21]} Bg4 {[%emt 0:05:33]} 16. Rfc1 {[%emt 0:05:11]} Kg7 {[%emt 0:08:34]} 17. b4 {[%emt 0:05:45]} h5 {[%emt 0:08:22]} 18. Nh4 {[%emt 0:05:06]} Rfe8 {[%emt 0:02:59]} 19. Be2 {[%emt 0:08:22]} Bxe2 {[%emt 0:02:00]} 20. Nxe2 {[%emt 0:00:11]} Ng8 {[%emt 0:11:51]} 21. Nf4 {[%emt 0:01:12]} Ne7 {[%emt 0:01:50]} 22. Nf3 {[%emt 0:02:03]} b5 {[%emt 0:08:05]} 23. Nd3 {[%emt 0:06:34]} Nb6 {[%emt 0:01:12]} 24. Nc5 {[%emt 0:01:36]} Nc4 {[%emt 0:01:04]} 25. Qc3 {[%emt 0:00:23]} Nc8 {[%emt 0:02:46]} 26. a4 {[%emt 0:02:25]} N8b6 {[%emt 0:01:11]} 27. Ra1 {[%emt 0:00:26]} Reb8 {[%emt 0:04:30]} 28. Ne5 {[%emt 0:02:35]} Rh8 {[%emt 0:04:47]} 29. a5 {[%emt 0:03:31]} Nc8 {[%emt 0:00:25]} 30. e4 {[%emt 0:00:54]} Qf6 {[%emt 0:04:43]} 31. Ncd7 {[%emt 0:02:57]} Qd6 {[%emt 0:01:02]} 32. exd5 {[%emt 0:01:25]} cxd5 {[%emt 0:00:07]} 33. Qf3 {[%emt 0:00:46]} f6 {[%emt 0:01:39]} 34. Nxc4 {[%emt 0:00:59]} bxc4 {[%emt 0:00:04]} 35. Nc5 {[%emt 0:00:23]} Na7 {[%emt 0:01:02]} 36. Re1 {[%emt 0:00:55]} Rhe8 {[%emt 0:00:41]} 37. Qf4 {[%emt 0:04:32]} Qxf4 {[%emt 0:01:49]} 38. gxf4 {[%emt 0:00:03]} Rxe1+ {[%emt 0:00:51]} 39. Rxe1 {[%emt 0:00:04]} Nc6 {[%emt 0:00:20]} 40. Ne6+ {[%emt 0:00:21]} Kf7 {[%emt 0:00:43]} 41. Nc7 {[%emt 0:00:12]} Ra7 {[%emt 0:00:39]} 42. Nxd5 {[%emt 0:00:50]} Rd7 {[%emt 0:00:55]} 43. Nb6 {[%emt 0:02:12]} Rxd4 {[%emt 0:00:11]} 44. g3 {[%emt 0:01:04]} Nxb4 {[%emt 0:00:11]} 45. Rc1 {[%emt 0:00:14]} Nc6 {[%emt 0:01:28]} 46. Nxc4 {[%emt 0:01:17]} Ke7 {[%emt 0:02:28]} 1/2-1/2

[Event "AUT-ch U16 Boys 2022"]
[Site "Sankt Veit an der Glan"]
[Date "2022.04.12"]
[Round "4.2"]
[White "Hofstadler, Mario"]
[Black "Hengl, Philip"]
[Result "1-0"]
[ECO "D02"]
[WhiteElo "2090"]
[BlackElo "1973"]
[Annotator "NA RC"]
[PlyCount "139"]
[EventDate "2022.04.11"]
[EventType "swiss"]
[EventCountry "AUT"]
[SourceTitle "playchess.com"]
[Source "ChessBase"]
[SourceQuality "1"]
[TimeControl "5400+30"]

1. d4 {[%emt 0:00:19]} d5 {[%emt 0:00:05]} 2. Nf3 {[%emt 0:00:15]} Nf6 {[%emt 0:00:06]} 3. g3 {[%emt 0:00:17]} Bf5 {[%emt 0:00:22]} 4. Bg2 {[%emt 0:04:43]} c6 {[%emt 0:00:19]} 5. O-O {[%emt 0:01:15]} h6 {[%emt 0:00:12]} 6. c3 {[%emt 0:06:33]} Nbd7 {[%emt 0:00:46]} 7. Nbd2 {[%emt 0:08:41]} Ne4 {[%emt 0:09:10]} 8. Nxe4 {[%emt 0:02:39]} Bxe4 {[%emt 0:01:09]} 9. Nd2 {[%emt 0:02:09]} Bxg2 {[%emt 0:00:09]} 10. Kxg2 {[%emt 0:00:05]} e6 {[%emt 0:02:07]} 11. Re1 {[%emt 0:06:42]} Be7 {[%emt 0:05:29]} 12. e4 {[%emt 0:04:29]} dxe4 {[%emt 0:04:34]} 13. Nxe4 {[%emt 0:00:21]} Nf6 {[%emt 0:00:14]} 14. f3 {[%emt 0:05:01]} O-O {[%emt 0:00:52]} 15. Qe2 {[%emt 0:01:33]} Qd7 {[%emt 0:04:45]} 16. Bf4 {[%emt 0:03:18]} Nd5 {[%emt 0:03:03]} 17. Bd2 {[%emt 0:04:04]} Rad8 {[%emt 0:05:12]} 18. Rad1 {[%emt 0:06:31]} Rfe8 {[%emt 0:00:52]} 19. a3 {[%emt 0:01:33]} Qc8 {[%emt 0:03:12]} 20. c4 {[%emt 0:06:36]} Nc7 {[%emt 0:06:48]} 21. Be3 {[%emt 0:00:40]} b6 {[%emt 0:01:26]} 22. Qc2 {[%emt 0:06:42]} Rd7 {[%emt 0:10:27]} 23. Rd2 {[%emt 0:01:10]} Red8 {[%emt 0:00:21]} 24. Red1 {[%emt 0:02:56]} Qb7 {[%emt 0:02:01]} 25. Qb3 {[%emt 0:05:09]} Kh8 {[%emt 0:17:04]} 26. h4 {[%emt 0:05:58]} f5 {[%emt 0:02:16]} 27. Nc5 {[%emt 0:01:58]} Bxc5 {[%emt 0:00:10]} 28. dxc5 {[%emt 0:00:08]} Rxd2+ {[%emt 0:00:12]} 29. Rxd2 {[%emt 0:00:05]} Rxd2+ {[%emt 0:00:06]} 30. Bxd2 {[%emt 0:00:04]} b5 {[%emt 0:09:05]} 31. Bf4 {[%emt 0:02:05]} Na6 {[%emt 0:02:01]} 32. Bd6 {[%emt 0:01:28]} Qd7 {[%emt 0:02:03]} 33. cxb5 {[%emt 0:01:40]} cxb5 {[%emt 0:00:13]} 34. Qe3 {[%emt 0:03:06]} b4 {[%emt 0:00:47]} 35. Qc1 {[%emt 0:05:19]} bxa3 {[%emt 0:02:00]} 36. bxa3 {[%emt 0:00:06]} Qc6 {[%emt 0:01:08]} 37. Qc4 {[%emt 0:00:12]} e5 {[%emt 0:02:04]} 38. Kf2 {[%emt 0:00:33]} Nc7 {[%emt 0:05:54]} 39. Qf7 {[%emt 0:01:23]} Nd5 {[%emt 0:00:42]} 40. Qf8+ {[%emt 0:00:18]} Kh7 {[%emt 0:00:06]} 41. Qxf5+ {[%emt 0:00:09]} Kh8 {[%emt 0:00:39]} 42. Qf8+ {[%emt 0:00:11]} Kh7 {[%emt 0:00:05]} 43. Qf5+ {[%emt 0:00:06]} Kh8 {[%emt 0:00:16]} 44. Qxe5 {[%emt 0:00:19]} Nf6 {[%emt 0:00:25]} 45. g4 {[%emt 0:00:55]} Qa4 {[%emt 0:00:11]} 46. g5 {[%emt 0:01:11]} Qxh4+ {[%emt 0:00:21]} 47. Kg2 {[%emt 0:02:14]} Qxg5+ {[%emt 0:00:36]} 48. Qxg5 {[%emt 0:00:11]} hxg5 {[%emt 0:00:04]} 49. c6 {[%emt 0:00:25]} Nd5 {[%emt 0:00:08]} 50. Bc5 {[%emt 0:01:07]} a6 {[%emt 0:00:43]} 51. Bd6 {[%emt 0:00:22]} Kg8 {[%emt 0:00:13]} 52. c7 {[%emt 0:00:14]} Nb6 {[%emt 0:00:08]} 53. Bc5 {[%emt 0:00:04]} Nc8 {[%emt 0:00:04]} 54. Kg3 {[%emt 0:00:05]} Kf7 {[%emt 0:00:31]} 55. Kg4 {[%emt 0:00:22]} Kf6 {[%emt 0:01:09]} 56. Bd4+ {[%emt 0:00:26]} Kg6 {[%emt 0:01:26]} 57. Be3 {[%emt 0:00:27]} Kf6 {[%emt 0:01:04]} 58. Bxg5+ {[%emt 0:00:07]} Ke6 {[%emt 0:00:25]} 59. Bf4 {[%emt 0:00:47]} g6 {[%emt 0:00:10]} 60. Kg5 {[%emt 0:00:24]} Kf7 {[%emt 0:00:47]} 61. Be5 {[%emt 0:00:41]} Ne7 {[%emt 0:00:37]} 62. Bd6 {[%emt 0:00:10]} Nc8 {[%emt 0:00:04]} 63. Bc5 {[%emt 0:00:42]} Kg7 {[%emt 0:00:09]} 64. a4 {[%emt 0:01:03]} Kf7 {[%emt 0:00:11]} 65. f4 {[%emt 0:00:32]} Kg7 {[%emt 0:00:05]} 66. a5 {[%emt 0:00:34]} Kf7 {[%emt 0:00:07]} 67. f5 {[%emt 0:00:09]} gxf5 {[%emt 0:00:25]} 68. Kxf5 {[%emt 0:00:05]} Ke8 {[%emt 0:00:26]} 69. Ke6 {[%emt 0:01:09]} Ne7 {[%emt 0:00:03]} 70. Kd6 {[%emt 0:00:13]} 1-0

[Event "AUT-ch U16 Boys 2022"]
[Site "Sankt Veit an der Glan"]
[Date "2022.04.12"]
[Round "4.3"]
[White "Kuti, Oliver"]
[Black "Borrmann, Laurenz"]
[Result "0-1"]
[ECO "C95"]
[WhiteElo "1970"]
[BlackElo "2232"]
[Annotator "RC"]
[PlyCount "94"]
[EventDate "2022.04.11"]
[EventType "swiss"]
[EventCountry "AUT"]
[SourceTitle "playchess.com"]
[Source "ChessBase"]
[SourceQuality "1"]
[TimeControl "5400+30"]

1. e4 {[%emt 0:00:04]} e5 {[%emt 0:00:21]} 2. Nf3 {[%emt 0:00:08]} Nc6 {[%emt 0:00:07]} 3. Bb5 {[%emt 0:00:22]} a6 {[%emt 0:01:00]} 4. Ba4 {[%emt 0:00:31]} Nf6 {[%emt 0:00:26]} 5. O-O {[%emt 0:00:25]} Be7 {[%emt 0:01:35]} 6. Re1 {[%emt 0:01:55]} b5 {[%emt 0:00:14]} 7. Bb3 {[%emt 0:00:01]} d6 {[%emt 0:01:03]} 8. c3 {[%emt 0:00:29]} O-O {[%emt 0:02:29]} 9. h3 {[%emt 0:01:14]} Nb8 {[%emt 0:00:33]} 10. d4 {[%emt 0:00:09]} Nbd7 {[%emt 0:00:22]} 11. c4 {[%emt 0:05:14]} Bb7 {[%emt 0:07:02]} 12. Nc3 {[%emt 0:00:31]} c6 {[%emt 0:03:50]} 13. a3 {[%emt 0:00:46]} Re8 {[%emt 0:10:02]} 14. Bg5 {[%emt 0:08:05]} Qb8 {[%emt 0:08:34]} 15. Ba2 {[%emt 0:25:06]} Nb6 {[%emt 0:09:17]} 16. dxe5 {[%emt 0:15:23]} dxe5 {[%emt 0:00:43]} 17. Bxf6 {[%emt 0:00:33]} Bxf6 {[%emt 0:02:41]} 18. c5 {[%emt 0:01:19]} Rd8 {[%emt 0:04:53]} 19. Qb3 {[%emt 0:05:09]} Nc4 {[%emt 0:00:54]} 20. Qc2 {[%emt 0:00:41]} Bc8 {[%emt 0:02:43]} 21. Bxc4 {[%emt 0:07:03]} bxc4 {[%emt 0:00:05]} 22. Na4 {[%emt 0:01:03]} Qb5 {[%emt 0:00:32]} 23. Rac1 {[%emt 0:07:19]} Be6 {[%emt 0:05:54]} 24. Nb6 {[%emt 0:01:01]} Rab8 {[%emt 0:00:15]} 25. Nxc4 {[%emt 0:00:31]} Bxc4 {[%emt 0:00:11]} 26. Qxc4 {[%emt 0:01:36]} Qxc4 {[%emt 0:03:28]} 27. Rxc4 {[%emt 0:00:02]} Rxb2 {[%emt 0:00:03]} 28. Rc3 {[%emt 0:03:34]} Kf8 {[%emt 0:02:19]} 29. Kf1 {[%emt 0:01:48]} Ke7 {[%emt 0:02:01]} 30. Rec1 {[%emt 0:00:59]} Ke6 {[%emt 0:04:03]} 31. Ke1 {[%emt 0:05:43]} Be7 {[%emt 0:01:40]} 32. Kf1 {[%emt 0:00:26]} f6 {[%emt 0:03:35]} 33. Ke1 {[%emt 0:00:59]} g6 {[%emt 0:00:38]} 34. Kf1 {[%emt 0:01:16]} Rd7 {[%emt 0:00:16]} 35. Ke1 {[%emt 0:00:58]} f5 {[%emt 0:00:47]} 36. Rc4 {[%emt 0:01:04]} Bd8 {[%emt 0:01:56]} 37. Ra4 {[%emt 0:00:55]} a5 {[%emt 0:00:08]} 38. Rac4 {[%emt 0:00:08]} Rd3 {[%emt 0:01:02]} 39. a4 {[%emt 0:01:07]} Be7 {[%emt 0:00:55]} 40. Kf1 {[%emt 0:00:49]} Ra3 {[%emt 0:00:36]} 41. exf5+ {[%emt 0:00:44]} gxf5 {[%emt 0:00:31]} 42. Re1 {[%emt 0:00:51]} e4 {[%emt 0:00:51]} 43. Nd4+ {[%emt 0:01:07]} Kd5 {[%emt 0:00:33]} 44. Rec1 {[%emt 0:00:50]} Raa2 {[%emt 0:00:38]} 45. f4 {[%emt 0:01:23]} Rf2+ {[%emt 0:00:54]} 46. Ke1 {[%emt 0:00:43]} Rxg2 {[%emt 0:00:34]} 47. Nxf5 {[%emt 0:00:23]} Rg1# {[%emt 0:01:16]} 0-1

[Event "AUT-ch U16 Boys 2022"]
[Site "Sankt Veit an der Glan"]
[Date "2022.04.12"]
[Round "4.4"]
[White "Gschiel, Alexander"]
[Black "Wagner, Leopold Franziskus"]
[Result "1-0"]
[ECO "A35"]
[WhiteElo "2109"]
[BlackElo "2061"]
[Annotator "TA"]
[PlyCount "133"]
[EventDate "2022.04.11"]
[EventType "swiss"]
[EventCountry "AUT"]
[SourceTitle "playchess.com"]
[Source "ChessBase"]
[SourceQuality "1"]
[TimeControl "5400+30"]

{[%evp 19,133,41,39,52,47,56,59,47,68,56,61,66,66,58,68,52,66,35,45,28,42,14,101,-51,-37,-51,-54,-14,31,29,24,6,37,46,60,27,78,44,146,149,141,109,91,77,117,120,141,102,200,206,206,208,435,462,460,460,508,530,532,516,513,541,528,514,605,572,607,599,595,602,558,539,618,577,733,671,740,540,1018,904,1272,1272,1268,1239,1234,1191,1055,1086,888,729,684,676,606,498,762,624,795,569,1212,117,124,48,48,48,29985,29986,29986,29985,29987,29988,29988,29985,29987,29988,29988,29989]} 1. c4 {[%emt 0:00:03]} Nf6 {[%emt 0:00:13]} 2. Nc3 {[%emt 0:00:09]} c5 {[%emt 0:01:13]} 3. Nf3 {[%emt 0:01:09]} Nc6 {[%emt 0:05:34]} 4. d4 {[%emt 0:00:47]} cxd4 {[%emt 0:00:40]} 5. Nxd4 {[%emt 0:00:20]} g6 {[%emt 0:00:31]} 6. e4 {[%emt 0:01:41]} d6 {[%emt 0:00:19]} 7. Be2 {[%emt 0:01:28]} Bg7 {[%emt 0:00:11]} 8. Be3 {[%emt 0:00:57]} O-O {[%emt 0:00:30]} 9. O-O {[%emt 0:07:31]} Bd7 {[%emt 0:02:00]} 10. Nc2 {[%emt 0:04:26]} Rc8 {[%emt 0:03:06] 10...Qa5 deserves study.} 11. h3 {[%emt 0:01:45] B38: Sicilian: Maroczy Bind with 5...Bg7 and 7...0-0.} Ne5 {[%emt 0:03:08][%cal Bc6e5,Be5d7,Bd7c5][%mdl 32]} 12. b3 {[%emt 0:02:44]} Bc6 {[%emt 0:01:01]} 13. f3 {[%emt 0:09:43] White is slightly better.} Ned7 {[%emt 0:11:03]} 14. Qd2 {[%emt 0:03:32]} (14. Bxa7 b6 15. Nb4 Qc7 16. Nxc6 Qxc6 $17) 14... b6 {[%emt 0:06:21]} 15. Rac1 {[%emt 0:03:43] [#]} Nh5 $146 {[%emt 0:08:44]} ({Predecessor:} 15... Nc5 16. Rfd1 a5 17. Nd4 Bb7 18. Ndb5 Nfd7 19. Bg5 Bf6 20. Bxf6 Nxf6 21. Qg5 Ne6 {0-1 (45) Plaskett,H (2410)-Petursson,M (2420) London 1979}) 16. Nd4 {[%emt 0:07:27]} Bb7 {[%emt 0:01:07]} 17. Nd5 {[%emt 0:05:37]} Nc5 {[%emt 0:14:47]} 18. b4 {[%emt 0:04:08]} Nd7 {[%emt 0:01:12]} 19. Rfd1 {[%emt 0:02:42]} Ng3 {[%emt 0:04:59]} 20. Bd3 {[%emt 0:07:39]} (20. Bf2 $5 {[%cal Rf2g3]} Nxe2+ 21. Qxe2 $11) 20... Nh5 {[%emt 0:10:04]} (20... e6 $11 {keeps the balance.}) 21. Kh2 $2 {[%emt 0:04:28] &Bianco is much more active.} (21. g4 $16) 21... e6 $15 {[%emt 0:03:17]} 22. Bg5 {[%emt 0:03:56]} Be5+ {[%emt 0:04:08]} 23. g3 $1 {[%emt 0:02:25]} Ndf6 {[%emt 0:04:29]} ({Don't play} 23... Bxg3+ 24. Kg2 Bf4 25. Bxf4 $14 (25. Bxd8 Bxd2 26. Ne7+ Kg7 $15)) 24. Nxf6+ {[%emt 0:01:15]} Bxf6 {[%emt 0:00:11]} 25. h4 {[%emt 0:01:59][%cal Bh3h4,Bh4g5][%mdl 32]} Bxg5 {[%emt 0:00:41]} 26. Qxg5 {[%emt 0:01:40]} a6 {[%emt 0:01:18]} 27. Be2 {[%emt 0:01:31]} Kg7 {[%emt 0:03:23]} (27... Qc7 $11) 28. Nb3 {[%emt 0:02:46]} Qxg5 {[%emt 0:02:14]} (28... Qc7 $14) 29. hxg5 $16 {[%emt 0:00:02]} Rfd8 {[%emt 0:00:13]} 30. Rd4 {[%emt 0:01:27] Black must now prevent Rcd1.} Kf8 {[%emt 0:00:31]} 31. a4 {[%emt 0:02:32]} Ke7 {[%emt 0:03:09]} 32. a5 {[%emt 0:01:19]} bxa5 {[%emt 0:00:43]} 33. Nxa5 {[%emt 0:00:09]} Rc7 {[%emt 0:01:26]} (33... Ba8 $16) 34. Rcd1 $18 {[%emt 0:02:04][%cal Oc4c5] Strongly threatening c5!} e5 {[%emt 0:01:17]} 35. R4d2 {[%emt 0:00:20][%cal Oc4c5]} Ng7 $2 {[%emt 0:01:05]} (35... Rcd7 36. b5 Ba8) 36. c5 $1 {[%emt 0:01:52][%cal Rc5d6]} Ne8 {[%emt 0:00:39]} 37. Bf1 {[%emt 0:01:32]} Ke6 {[%emt 0:01:12]} 38. Bh3+ {[%emt 0:00:53]} Ke7 {[%emt 0:00:01]} 39. Nc4 {[%emt 0:00:13]} Rc6 {[%emt 0:00:40] [#]} 40. Nxe5 $1 {[%emt 0:00:20][%mdl 512]} Rc7 {[%emt 0:00:02]} 41. Nc4 {[%emt 0:00:24]} Rc6 {[%emt 0:00:11]} 42. e5 {[%emt 0:00:20]} d5 {[%emt 0:00:08]} 43. Rxd5 {[%emt 0:00:15]} Rxd5 {[%emt 0:01:03]} 44. Rxd5 {And now Rd7+ would win.} Rc7 {Against Rd7+} 45. Rd3 {[%emt 0:00:28]} Bc6 {[%emt 0:01:07]} 46. Nd6 {[%emt 0:02:04]} Ng7 {[%emt 0:00:19]} 47. Ra3 {[%emt 0:00:36]} Ne6 {[%emt 0:00:28]} 48. f4 {[%emt 0:01:18]} Bb5 {[%emt 0:00:20]} 49. Bxe6 {[%emt 0:01:54]} Kxe6 {[%emt 0:00:03]} 50. Nxb5 {[%emt 0:00:32]} axb5 {[%emt 0:00:01][%mdl 4096] Endgame KR-KR} 51. Rd3 {[%emt 0:00:09]} Kf5 {[%emt 0:00:23]} 52. Kg2 {[%emt 0:02:02]} Ke4 {[%emt 0:00:30]} 53. Rd6 {[%emt 0:00:12]} Ra7 {[%emt 0:00:41]} 54. Rb6 {[%emt 0:02:01]} Ra2+ {[%emt 0:00:21]} 55. Kf1 {[%emt 0:00:42]} Ke3 {[%emt 0:00:01]} 56. Rd6 {[%emt 0:01:18]} Ra1+ {[%emt 0:00:53]} (56... Rf2+ $142 57. Ke1 Rb2) 57. Kg2 {[%emt 0:00:01]} Rb1 {[%emt 0:00:06]} 58. c6 {[%emt 0:01:10] Rd5 is the strong threat.} Rxb4 {[%emt 0:00:23]} 59. c7 $2 {[%emt 0:00:17]} (59. f5 $18 {and the rest is easy.} gxf5 60. c7) 59... Rc4 $16 {[%emt 0:00:18]} 60. Rd7 {[%emt 0:00:20]} (60. Rb6 $16) 60... b4 $14 {[%emt 0:04:19] Threatens to win with ...b3.} 61. Rxf7 {[%emt 0:00:28] aiming for e6.} Kd3 $2 {[%emt 0:01:25][%mdl 8192] Black cannot hold the game after this.} (61... b3 $14 62. Rf8 (62. Rxh7 Rc2+ 63. Kh3 b2 $11) 62... Rc2+ 63. Kh3 Rxc7) 62. e6 {[%emt 0:00:54] White mates.} b3 {[%emt 0:00:31]} 63. e7 {[%emt 0:00:39]} b2 {[%emt 0:00:18]} 64. e8=Q {[%emt 0:00:07]} b1=Q {[%emt 0:00:04]} 65. c8=Q {[%emt 0:00:31]} Qc2+ {[%emt 0:01:02]} 66. Kh3 {[%emt 0:00:12]} Rxc8 {[%emt 0:00:12]} 67. Rd7+ {[%emt 0:00:04] Weighted Error Value: White=0.22 (precise) /Black=0.34} 1-0

[Event "AUT-ch U16 Boys 2022"]
[Site "Sankt Veit an der Glan"]
[Date "2022.04.12"]
[Round "4.5"]
[White "Wendl, Philipp"]
[Black "Zaytsev, Alexander"]
[Result "1/2-1/2"]
[ECO "B49"]
[WhiteElo "2000"]
[BlackElo "1837"]
[Annotator "RC"]
[PlyCount "61"]
[EventDate "2022.04.11"]
[EventType "swiss"]
[EventCountry "AUT"]
[SourceTitle "playchess.com"]
[Source "ChessBase"]
[SourceQuality "1"]
[TimeControl "5400+30"]

1. e4 {[%emt 0:00:01]} c5 {[%emt 0:00:12]} 2. Nf3 {[%emt 0:00:06]} e6 {[%emt 0:00:18]} 3. d4 {[%emt 0:00:05]} cxd4 {[%emt 0:00:06]} 4. Nxd4 {[%emt 0:00:05]} Nc6 {[%emt 0:01:02]} 5. Nc3 {[%emt 0:00:39]} a6 {[%emt 0:00:36]} 6. Be3 {[%emt 0:03:52]} Qc7 {[%emt 0:00:20]} 7. Be2 {[%emt 0:00:19]} Nf6 {[%emt 0:01:39]} 8. O-O {[%emt 0:00:37]} Bb4 {[%emt 0:00:45]} 9. Na4 {[%emt 0:03:04]} O-O {[%emt 0:00:57]} 10. Nxc6 {[%emt 0:00:38]} bxc6 {[%emt 0:00:04]} 11. Nb6 {[%emt 0:00:12]} Rb8 {[%emt 0:01:07]} 12. Nxc8 {[%emt 0:00:24]} Rfxc8 {[%emt 0:01:53]} 13. Bxa6 {[%emt 0:00:54]} Rf8 {[%emt 0:00:08]} 14. Bd3 {[%emt 0:00:41]} Bd6 {[%emt 0:00:11]} 15. g3 {[%emt 0:01:45]} Rxb2 {[%emt 0:03:07]} 16. Bd4 {[%emt 0:02:10]} Rb4 {[%emt 0:00:29]} 17. Bxf6 {[%emt 0:02:13]} gxf6 {[%emt 0:00:02]} 18. Qg4+ {[%emt 0:00:48]} Kh8 {[%emt 0:00:02]} 19. Qh4 {[%emt 0:00:09]} Be7 {[%emt 0:05:41]} 20. a4 {[%emt 0:01:46]} Qa5 {[%emt 0:00:25]} 21. Kg2 {[%emt 0:01:54]} Rxa4 {[%emt 0:01:58]} 22. c4 {[%emt 0:02:12]} Rxa1 {[%emt 0:06:36]} 23. e5 {[%emt 0:00:11]} f5 {[%emt 0:01:17]} 24. Qxe7 {[%emt 0:00:05]} Rg8 {[%emt 0:02:52]} 25. Qf6+ {[%emt 0:00:14]} Rg7 {[%emt 0:00:11]} 26. Rxa1 {[%emt 0:00:08]} Qxa1 {[%emt 0:00:56]} 27. Qd8+ {[%emt 0:00:09]} Rg8 {[%emt 0:00:21]} 28. Qf6+ {[%emt 0:00:05]} Rg7 {[%emt 0:00:17]} 29. Qd8+ {[%emt 0:00:06]} Rg8 {[%emt 0:00:42]} 30. Qf6+ {[%emt 0:00:07]} Rg7 {[%emt 0:00:31]} 31. Qd8+ 1/2-1/2